[Event "Titled Tuesday Blitz August 02 Early 2022"]
[White "Sztokbant, Bernardo Vainzoff"]
[Black "Vasquez Schroeder, Rodrigo"]
[WhiteFideId "2115956"]
[BlackFideId "3400042"]
[WhiteElo "2203"]
[BlackElo "2567"]
[Result "0-1"]
[Round "01"]
[TimeControl "180+1"]
[Date "2022.08.02"]
[WhiteClock "0:00:03"]
[BlackClock "0:00:21"]

1. d4 {[%clk 0:02:52]}  d5 {[%clk 0:02:59]} 2. c4 {[%clk 0:02:52]}  c6 {[%clk 0:03:00]} 3. Nf3 {[%clk 0:02:52]}  Nf6 {[%clk 0:03:00]} 4. Nc3 {[%clk 0:02:51]}  e6 {[%clk 0:03:00]} 5. e3 {[%clk 0:02:50]}  Nbd7 {[%clk 0:02:59]} 6. Bd3 {[%clk 0:02:49]}  dxc4 {[%clk 0:02:59]} 7. Bxc4 {[%clk 0:02:49]}  b5 {[%clk 0:02:59]} 8. Bd3 {[%clk 0:02:48]}  b4 {[%clk 0:03:00]} 9. Ne2 {[%clk 0:02:47]}  c5 {[%clk 0:02:57]} 10. O-O {[%clk 0:02:47]}  Bb7 {[%clk 0:02:57]} 11. Ng3 {[%clk 0:02:46]}  Be7 {[%clk 0:02:57]} 12. b3 {[%clk 0:02:46]}  O-O {[%clk 0:02:56]} 13. Bb2 {[%clk 0:02:46]}  Rc8 {[%clk 0:02:57]} 14. Rc1 {[%clk 0:02:46]}  Qb6 {[%clk 0:02:57]} 15. Qe2 {[%clk 0:02:42]}  Rfd8 {[%clk 0:02:56]} 16. Rfd1 {[%clk 0:02:39]}  h6 {[%clk 0:02:56]} 17. Nd2 {[%clk 0:02:35]}  cxd4 {[%clk 0:02:39]} 18. Bxd4 {[%clk 0:02:34]}  Bc5 {[%clk 0:02:40]} 19. Nc4 {[%clk 0:02:34]}  Qc6 {[%clk 0:02:39]} 20. Qf1 {[%clk 0:02:21]}  Bxd4 {[%clk 0:02:39]} 21. exd4 {[%clk 0:02:22]}  Qd5 {[%clk 0:02:35]} 22. Bb1 {[%clk 0:02:18]}  Nf8 {[%clk 0:02:24]} 23. Ne2 {[%clk 0:02:16]}  Qg5 {[%clk 0:02:21]} 24. Ne3 {[%clk 0:02:07]}  N8d7 {[%clk 0:02:09]} 25. Bd3 {[%clk 0:01:53]}  Nb6 {[%clk 0:02:05]} 26. Ng3 {[%clk 0:01:38]}  h5 {[%clk 0:01:58]} 27. Ba6 {[%clk 0:01:23]}  Bxa6 {[%clk 0:01:57]} 28. Qxa6 {[%clk 0:01:24]}  h4 {[%clk 0:01:57]} 29. Ngf1 {[%clk 0:01:10]}  Ra8 {[%clk 0:01:51]} 30. Rc5 {[%clk 0:01:06]}  Nbd5 {[%clk 0:01:49]} 31. Nxd5 {[%clk 0:01:04]}  Nxd5 {[%clk 0:01:48]} 32. Re1 {[%clk 0:00:55]}  Qf6 {[%clk 0:01:41]} 33. Qc4 {[%clk 0:00:48]}  Nf4 {[%clk 0:01:27]} 34. Re4 {[%clk 0:00:43]}  a5 {[%clk 0:01:17]} 35. h3 {[%clk 0:00:36]}  Rxd4 {[%clk 0:01:12]} 36. Rxd4 {[%clk 0:00:30]}  Qxd4 {[%clk 0:01:11]} 37. Qxd4 {[%clk 0:00:28]}  Ne2+ {[%clk 0:01:12]} 38. Kh2 {[%clk 0:00:28]}  Nxd4 {[%clk 0:01:12]} 39. Ne3 {[%clk 0:00:27]}  Ne2 {[%clk 0:01:07]} 40. Nc4 {[%clk 0:00:25]}  a4 {[%clk 0:01:03]} 41. Nb6 {[%clk 0:00:25]}  axb3 {[%clk 0:01:01]} 42. axb3 {[%clk 0:00:24]}  Ra3 {[%clk 0:00:59]} 43. Rc8+ {[%clk 0:00:21]}  Kh7 {[%clk 0:00:59]} 44. Rc4 {[%clk 0:00:22]}  Rxb3 {[%clk 0:00:57]} 45. Rxh4+ {[%clk 0:00:22]}  Kg6 {[%clk 0:00:56]} 46. Nd7 {[%clk 0:00:22]}  f6 {[%clk 0:00:55]} 47. Nc5 {[%clk 0:00:19]}  Rb1 {[%clk 0:00:51]} 48. Nxe6 {[%clk 0:00:19]}  Kf7 {[%clk 0:00:52]} 49. Nc5 {[%clk 0:00:10]}  Nc3 {[%clk 0:00:51]} 50. Rc4 {[%clk 0:00:10]}  Nd1 {[%clk 0:00:49]} 51. Nd3 {[%clk 0:00:08]}  b3 {[%clk 0:00:47]} 52. Rb4 {[%clk 0:00:07]}  Nc3 {[%clk 0:00:44]} 53. Kg3 {[%clk 0:00:07]}  Nd5 {[%clk 0:00:42]} 54. Rb7+ {[%clk 0:00:06]}  Kg8 {[%clk 0:00:41]} 55. Kf3 {[%clk 0:00:06]}  Nc3 {[%clk 0:00:35]} 56. Nc5 {[%clk 0:00:05]}  b2 {[%clk 0:00:34]} 57. Nd3 {[%clk 0:00:05]}  Na4 {[%clk 0:00:34]} 58. Rb4 {[%clk 0:00:04]}  Ra1 {[%clk 0:00:31]} 59. Nxb2 {[%clk 0:00:04]}  Ra3+ {[%clk 0:00:31]} 60. Kf4 {[%clk 0:00:03]}  Nc3 {[%clk 0:00:32]} 61. Rb8+ {[%clk 0:00:03]}  Kh7 {[%clk 0:00:32]} 62. Nc4 {[%clk 0:00:04]}  Ra4 {[%clk 0:00:32]} 63. Rc8 {[%clk 0:00:03]}  Nb5 {[%clk 0:00:32]} 64. Kf5 {[%clk 0:00:04]}  Rxc4 {[%clk 0:00:32]} 65. Rxc4 {[%clk 0:00:05]}  Nd6+ {[%clk 0:00:32]} 66. Ke6 {[%clk 0:00:05]}  Nxc4 {[%clk 0:00:33]} 67. Kf5 {[%clk 0:00:05]}  Kg8 {[%clk 0:00:31]} 68. Kf4 {[%clk 0:00:05]}  Kf7 {[%clk 0:00:31]} 69. g4 {[%clk 0:00:05]}  Ne5 {[%clk 0:00:29]} 70. h4 {[%clk 0:00:05]}  Ng6+ {[%clk 0:00:29]} 71. Kg3 {[%clk 0:00:05]}  Ke6 {[%clk 0:00:29]} 72. h5 {[%clk 0:00:03]}  Ne5 {[%clk 0:00:28]} 73. f4 {[%clk 0:00:03]}  Nd3 {[%clk 0:00:27]} 74. Kf3 {[%clk 0:00:03]}  Nc5 {[%clk 0:00:25]} 75. Ke3 {[%clk 0:00:03]}  Nb7 {[%clk 0:00:24]} 76. Kf3 {[%clk 0:00:03]}  Nd6 {[%clk 0:00:22]} 77. Ke3 {[%clk 0:00:04]}  Kd5 {[%clk 0:00:21]} 78. Kf3 {[%clk 0:00:03]}  Kd4 {[%clk 0:00:21]} 79. g5 {[%clk 0:00:03]}  fxg5 {[%clk 0:00:21]} 80. fxg5 {[%clk 0:00:04]}  Ke5 {[%clk 0:00:22]} 81. Kg4 {[%clk 0:00:04]}  Nf7 {[%clk 0:00:20]} 82. h6 {[%clk 0:00:03]}  g6 {[%clk 0:00:20]} 83. Kh4 {[%clk 0:00:03]}  Kf5 {[%clk 0:00:20]} 84. h7 {[%clk 0:00:04]}  Nh8 {[%clk 0:00:20]} 85. Kg3 {[%clk 0:00:03]}  Kxg5 {[%clk 0:00:21]} 0-1


[Site "https://www.chess.com"]

[Event "Titled Tuesday Blitz August 02 Early 2022"]
[White "Turzo, Attila"]
[Black "Maksimovic, Bojan"]
[WhiteFideId "704954"]
[BlackFideId "14408120"]
[WhiteElo "2466"]
[BlackElo "2453"]
[Result "0-1"]
[Round "01"]
[TimeControl "180+1"]
[Date "2022.08.02"]
[WhiteClock "0:00:04"]
[BlackClock "0:01:40"]

1. e4 {[%clk 0:02:53]}  e5 {[%clk 0:03:00]} 2. Nf3 {[%clk 0:02:52]}  Nc6 {[%clk 0:03:00]} 3. Bc4 {[%clk 0:02:36]}  Nf6 {[%clk 0:02:57]} 4. Ng5 {[%clk 0:02:15]}  Bc5 {[%clk 0:02:53]} 5. Bxf7+ {[%clk 0:01:30]}  Ke7 {[%clk 0:02:51]} 6. Bb3 {[%clk 0:01:21]}  Rf8 {[%clk 0:02:46]} 7. O-O {[%clk 0:01:05]}  d6 {[%clk 0:02:42]} 8. d3 {[%clk 0:01:03]}  h6 {[%clk 0:02:40]} 9. Nf3 {[%clk 0:01:03]}  Bg4 {[%clk 0:02:36]} 10. Be3 {[%clk 0:01:02]}  Nd4 {[%clk 0:01:56]} 11. Bxd4 {[%clk 0:00:54]}  Bxd4 {[%clk 0:01:56]} 12. c3 {[%clk 0:00:54]}  Bb6 {[%clk 0:01:55]} 13. Nbd2 {[%clk 0:00:54]}  Qe8 {[%clk 0:01:51]} 14. Kh1 {[%clk 0:00:47]}  Qh5 {[%clk 0:01:50]} 15. Qe1 {[%clk 0:00:44]}  Bxf3 {[%clk 0:01:44]} 16. Nxf3 {[%clk 0:00:43]}  Ng4 {[%clk 0:01:45]} 17. h4 {[%clk 0:00:09]}  Rxf3 {[%clk 0:01:42]} 18. g3 {[%clk 0:00:09]}  Nxf2+ {[%clk 0:01:38]} 19. Kg2 {[%clk 0:00:09]}  Rxg3+ {[%clk 0:01:39]} 20. Kxg3 {[%clk 0:00:05]}  Qg4+ {[%clk 0:01:39]} 21. Kh2 {[%clk 0:00:04]}  Qh3+ {[%clk 0:01:40]} 0-1


[Site "https://www.chess.com"]

[Event "Titled Tuesday Blitz August 02 Early 2022"]
[White "Urbina Perez, Juan Antonio"]
[Black "Xu, Yi"]
[WhiteFideId "2217368"]
[BlackFideId "8605564"]
[WhiteElo "2192"]
[BlackElo "2471"]
[Result "0-1"]
[Round "01"]
[TimeControl "180+1"]
[Date "2022.08.02"]
[WhiteClock "0:00:03"]
[BlackClock "0:00:21"]

1. e4 {[%clk 0:02:59]}  c6 {[%clk 0:02:59]} 2. d4 {[%clk 0:02:52]}  d5 {[%clk 0:03:00]} 3. e5 {[%clk 0:02:53]}  Bf5 {[%clk 0:02:59]} 4. Nd2 {[%clk 0:02:51]}  e6 {[%clk 0:02:59]} 5. Nb3 {[%clk 0:02:51]}  Ne7 {[%clk 0:02:55]} 6. Nf3 {[%clk 0:02:52]}  h6 {[%clk 0:02:54]} 7. Be2 {[%clk 0:02:52]}  Nd7 {[%clk 0:02:54]} 8. O-O {[%clk 0:02:52]}  g5 {[%clk 0:02:53]} 9. c3 {[%clk 0:02:48]}  Bg7 {[%clk 0:02:52]} 10. Ne1 {[%clk 0:02:45]}  Qc7 {[%clk 0:02:40]} 11. Bd3 {[%clk 0:02:45]}  O-O-O {[%clk 0:02:35]} 12. a4 {[%clk 0:02:43]}  f6 {[%clk 0:02:34]} 13. exf6 {[%clk 0:02:40]}  Bxf6 {[%clk 0:02:31]} 14. a5 {[%clk 0:02:40]}  e5 {[%clk 0:02:25]} 15. Bxf5 {[%clk 0:02:29]}  Nxf5 {[%clk 0:02:24]} 16. a6 {[%clk 0:02:28]}  b6 {[%clk 0:02:21]} 17. dxe5 {[%clk 0:02:27]}  Bxe5 {[%clk 0:02:15]} 18. Nf3 {[%clk 0:02:01]}  Bd6 {[%clk 0:02:14]} 19. g3 {[%clk 0:02:01]}  Nc5 {[%clk 0:01:55]} 20. Nbd4 {[%clk 0:01:59]}  Nxd4 {[%clk 0:01:51]} 21. Nxd4 {[%clk 0:02:00]}  Rde8 {[%clk 0:01:46]} 22. Be3 {[%clk 0:01:39]}  h5 {[%clk 0:01:18]} 23. Bxg5 {[%clk 0:01:28]}  Ne4 {[%clk 0:01:17]} 24. Bh4 {[%clk 0:01:21]}  Qd7 {[%clk 0:01:03]} 25. Qd3 {[%clk 0:01:09]}  Be7 {[%clk 0:00:56]} 26. Bxe7 {[%clk 0:01:07]}  Rxe7 {[%clk 0:00:57]} 27. f3 {[%clk 0:01:06]}  Nd6 {[%clk 0:00:49]} 28. Rae1 {[%clk 0:01:05]}  Rhe8 {[%clk 0:00:49]} 29. Rxe7 {[%clk 0:01:02]}  Rxe7 {[%clk 0:00:50]} 30. b4 {[%clk 0:01:02]}  h4 {[%clk 0:00:49]} 31. g4 {[%clk 0:00:57]}  h3 {[%clk 0:00:47]} 32. Nf5 {[%clk 0:00:48]}  Nxf5 {[%clk 0:00:45]} 33. Qxf5 {[%clk 0:00:49]}  Qxf5 {[%clk 0:00:43]} 34. gxf5 {[%clk 0:00:50]}  Re2 {[%clk 0:00:30]} 35. Rf2 {[%clk 0:00:45]}  Re1+ {[%clk 0:00:29]} 36. Rf1 {[%clk 0:00:45]}  Re2 {[%clk 0:00:29]} 37. Rf2 {[%clk 0:00:46]}  Re3 {[%clk 0:00:29]} 38. f6 {[%clk 0:00:39]}  Kd7 {[%clk 0:00:29]} 39. f7 {[%clk 0:00:39]}  Ke7 {[%clk 0:00:29]} 40. f8=Q+ {[%clk 0:00:39]}  Kxf8 {[%clk 0:00:29]} 41. f4 {[%clk 0:00:40]}  Rxc3 {[%clk 0:00:28]} 42. Re2 {[%clk 0:00:14]}  Rc4 {[%clk 0:00:27]} 43. Re6 {[%clk 0:00:13]}  Rxb4 {[%clk 0:00:24]} 44. Rxc6 {[%clk 0:00:13]}  Ra4 {[%clk 0:00:24]} 45. Rd6 {[%clk 0:00:11]}  Rxa6 {[%clk 0:00:24]} 46. Rxd5 {[%clk 0:00:11]}  Ra2 {[%clk 0:00:24]} 47. Rd3 {[%clk 0:00:10]}  Rg2+ {[%clk 0:00:22]} 48. Kh1 {[%clk 0:00:10]}  Rf2 {[%clk 0:00:22]} 49. Rxh3 {[%clk 0:00:10]}  Rxf4 {[%clk 0:00:23]} 50. Kg2 {[%clk 0:00:10]}  Kg7 {[%clk 0:00:22]} 51. Ra3 {[%clk 0:00:09]}  a5 {[%clk 0:00:21]} 52. Rb3 {[%clk 0:00:09]}  Rb4 {[%clk 0:00:22]} 53. Ra3 {[%clk 0:00:05]}  a4 {[%clk 0:00:22]} 54. Kf2 {[%clk 0:00:05]}  b5 {[%clk 0:00:22]} 55. Ke2 {[%clk 0:00:06]}  Rb2+ {[%clk 0:00:20]} 56. Kd3 {[%clk 0:00:05]}  Rxh2 {[%clk 0:00:20]} 57. Kc3 {[%clk 0:00:06]}  Rh3+ {[%clk 0:00:21]} 58. Kb4 {[%clk 0:00:04]}  Rxa3 {[%clk 0:00:21]} 59. Kxa3 {[%clk 0:00:03]}  Kf6 {[%clk 0:00:21]} 0-1


[Site "https://www.chess.com"]

[Event "Titled Tuesday Blitz August 02 Early 2022"]
[White "Vakhlamov, Igor L."]
[Black "Chyzy, Jakub"]
[WhiteFideId "24126748"]
[BlackFideId "21806209"]
[WhiteElo "2401"]
[BlackElo "2023"]
[Result "1-0"]
[Round "01"]
[TimeControl "180+1"]
[Date "2022.08.02"]
[WhiteClock "0:01:23"]
[BlackClock "0:00:15"]

1. e4 {[%clk 0:02:59]}  e5 {[%clk 0:02:59]} 2. Nf3 {[%clk 0:02:59]}  Nc6 {[%clk 0:02:59]} 3. Nc3 {[%clk 0:02:58]}  Nf6 {[%clk 0:02:58]} 4. Bb5 {[%clk 0:02:58]}  Bb4 {[%clk 0:02:57]} 5. Nd5 {[%clk 0:02:59]}  Bc5 {[%clk 0:02:28]} 6. O-O {[%clk 0:02:54]}  O-O {[%clk 0:02:25]} 7. d4 {[%clk 0:02:53]}  Nxd4 {[%clk 0:02:21]} 8. Nxd4 {[%clk 0:02:51]}  Bxd4 {[%clk 0:02:07]} 9. Bg5 {[%clk 0:02:51]}  c6 {[%clk 0:02:08]} 10. Nxf6+ {[%clk 0:02:48]}  gxf6 {[%clk 0:02:07]} 11. Bh6 {[%clk 0:02:49]}  d5 {[%clk 0:01:35]} 12. Qf3 {[%clk 0:02:37]}  Kh8 {[%clk 0:01:19]} 13. Bxf8 {[%clk 0:02:30]}  dxe4 {[%clk 0:01:07]} 14. Qxe4 {[%clk 0:02:21]}  Qxf8 {[%clk 0:01:06]} 15. c3 {[%clk 0:02:16]}  Bb6 {[%clk 0:00:48]} 16. Bc4 {[%clk 0:02:00]}  Qg7 {[%clk 0:00:48]} 17. Rad1 {[%clk 0:01:58]}  f5 {[%clk 0:00:43]} 18. Qh4 {[%clk 0:01:56]}  Be6 {[%clk 0:00:38]} 19. Bxe6 {[%clk 0:01:55]}  fxe6 {[%clk 0:00:39]} 20. Rd6 {[%clk 0:01:54]}  Rg8 {[%clk 0:00:40]} 21. g3 {[%clk 0:01:54]}  f4 {[%clk 0:00:36]} 22. Rxe6 {[%clk 0:01:50]}  fxg3 {[%clk 0:00:36]} 23. hxg3 {[%clk 0:01:51]}  Qxg3+ {[%clk 0:00:35]} 24. Qxg3 {[%clk 0:01:51]}  Rxg3+ {[%clk 0:00:35]} 25. Kh2 {[%clk 0:01:52]}  Rf3 {[%clk 0:00:33]} 26. Kg2 {[%clk 0:01:43]}  Rf5 {[%clk 0:00:32]} 27. Re7 {[%clk 0:01:43]}  h5 {[%clk 0:00:29]} 28. Rxb7 {[%clk 0:01:40]}  Rg5+ {[%clk 0:00:26]} 29. Kf3 {[%clk 0:01:40]}  h4 {[%clk 0:00:22]} 30. Rh1 {[%clk 0:01:39]}  Rf5+ {[%clk 0:00:20]} 31. Ke4 {[%clk 0:01:38]}  Rh5 {[%clk 0:00:20]} 32. Rd1 {[%clk 0:01:24]}  h3 {[%clk 0:00:19]} 33. Rdd7 {[%clk 0:01:23]}  h2 {[%clk 0:00:19]} 34. Rb8+ {[%clk 0:01:22]}  Bd8 {[%clk 0:00:15]} 35. Rbxd8# {[%clk 0:01:23]} 1-0


[Site "https://www.chess.com"]

[Event "Titled Tuesday Blitz August 02 Early 2022"]
[White "Xiong, Jeffery"]
[Black "Suder, Jakub"]
[WhiteFideId "2047640"]
[BlackFideId "1195310"]
[WhiteElo "2714"]
[BlackElo "2071"]
[Result "1-0"]
[Round "01"]
[TimeControl "180+1"]
[Date "2022.08.02"]
[WhiteClock "0:02:46"]
[BlackClock "0:01:46"]

1. d4 {[%clk 0:02:57]}  d5 {[%clk 0:02:58]} 2. c4 {[%clk 0:02:57]}  dxc4 {[%clk 0:02:50]} 3. Nf3 {[%clk 0:02:56]}  a6 {[%clk 0:02:50]} 4. e3 {[%clk 0:02:54]}  Bg4 {[%clk 0:02:49]} 5. Bxc4 {[%clk 0:02:54]}  e6 {[%clk 0:02:49]} 6. O-O {[%clk 0:02:54]}  Nc6 {[%clk 0:02:49]} 7. Be2 {[%clk 0:02:54]}  Nf6 {[%clk 0:02:49]} 8. Nbd2 {[%clk 0:02:54]}  Bd6 {[%clk 0:02:48]} 9. h3 {[%clk 0:02:55]}  Bh5 {[%clk 0:02:48]} 10. Nc4 {[%clk 0:02:55]}  O-O {[%clk 0:02:45]} 11. b3 {[%clk 0:02:55]}  Qe7 {[%clk 0:02:41]} 12. Bb2 {[%clk 0:02:55]}  Rfd8 {[%clk 0:02:39]} 13. Rc1 {[%clk 0:02:54]}  Rac8 {[%clk 0:02:38]} 14. a3 {[%clk 0:02:54]}  e5 {[%clk 0:02:16]} 15. Nfxe5 {[%clk 0:02:51]}  Nxe5 {[%clk 0:02:05]} 16. Nxd6 {[%clk 0:02:47]}  Rxd6 {[%clk 0:01:52]} 17. Bxh5 {[%clk 0:02:46]}  Nxh5 {[%clk 0:01:46]} 18. Qxh5 {[%clk 0:02:47]}  Nd3 {[%clk 0:01:46]} 19. Qf5 {[%clk 0:02:46]} 1-0


[Site "https://www.chess.com"]

[Event "Titled Tuesday Blitz August 02 Early 2022"]
[White "Al-Tarboush, Ward"]
[Black "Pranav Anand"]
[WhiteFideId "7601450"]
[BlackFideId "46626786"]
[WhiteElo "2231"]
[BlackElo "2259"]
[Result "0-1"]
[Round "02"]
[TimeControl "180+1"]
[Date "2022.08.02"]
[WhiteClock "0:00:39"]
[BlackClock "0:01:53"]

1. e4 {[%clk 0:03:00]}  b6 {[%clk 0:03:00]} 2. d4 {[%clk 0:03:00]}  Bb7 {[%clk 0:03:01]} 3. Bd3 {[%clk 0:02:59]}  e6 {[%clk 0:03:01]} 4. Nf3 {[%clk 0:02:59]}  Nf6 {[%clk 0:03:01]} 5. e5 {[%clk 0:02:58]}  Nd5 {[%clk 0:03:02]} 6. O-O {[%clk 0:02:57]}  c5 {[%clk 0:03:01]} 7. c4 {[%clk 0:02:56]}  Nc7 {[%clk 0:02:53]} 8. d5 {[%clk 0:02:54]}  exd5 {[%clk 0:02:52]} 9. cxd5 {[%clk 0:02:54]}  Bxd5 {[%clk 0:02:50]} 10. Nc3 {[%clk 0:02:53]}  Bb7 {[%clk 0:02:49]} 11. Ne4 {[%clk 0:02:53]}  Ne6 {[%clk 0:02:46]} 12. Re1 {[%clk 0:02:29]}  Nc6 {[%clk 0:02:42]} 13. Bg5 {[%clk 0:02:23]}  Qc7 {[%clk 0:02:31]} 14. h4 {[%clk 0:02:20]}  h6 {[%clk 0:02:27]} 15. Bd2 {[%clk 0:02:20]}  Be7 {[%clk 0:02:27]} 16. a4 {[%clk 0:02:15]}  a5 {[%clk 0:02:25]} 17. Qc1 {[%clk 0:02:13]}  O-O-O {[%clk 0:02:22]} 18. Nc3 {[%clk 0:02:04]}  Ncd4 {[%clk 0:02:20]} 19. Nxd4 {[%clk 0:02:03]}  Nxd4 {[%clk 0:02:21]} 20. Bc4 {[%clk 0:01:41]}  d5 {[%clk 0:02:10]} 21. exd6 {[%clk 0:01:35]}  Bxd6 {[%clk 0:02:11]} 22. Nb5 {[%clk 0:01:34]}  Nxb5 {[%clk 0:02:09]} 23. Bxb5 {[%clk 0:01:25]}  Kb8 {[%clk 0:02:05]} 24. Be3 {[%clk 0:01:19]}  Bh2+ {[%clk 0:02:00]} 25. Kh1 {[%clk 0:01:18]}  Be5 {[%clk 0:02:00]} 26. Qc2 {[%clk 0:01:13]}  Qe7 {[%clk 0:01:58]} 27. f4 {[%clk 0:00:51]}  Qxh4+ {[%clk 0:01:58]} 28. Kg1 {[%clk 0:00:51]}  Bxf4 {[%clk 0:01:56]} 29. Bxf4+ {[%clk 0:00:52]}  Qxf4 {[%clk 0:01:57]} 30. Re7 {[%clk 0:00:52]}  Rd2 {[%clk 0:01:53]} 31. Rxf7 {[%clk 0:00:39]}  Qd4+ {[%clk 0:01:53]} 0-1


[Site "https://www.chess.com"]

[Event "Titled Tuesday Blitz August 02 Early 2022"]
[White "Begmuratov, Khumoyun"]
[Black "Xiong, Jeffery"]
[WhiteFideId "14210207"]
[BlackFideId "2047640"]
[WhiteElo "1978"]
[BlackElo "2714"]
[Result "0-1"]
[Round "02"]
[TimeControl "180+1"]
[Date "2022.08.02"]
[WhiteClock "0:00:02"]
[BlackClock "0:00:05"]

1. e4 {[%clk 0:02:55]}  e5 {[%clk 0:02:58]} 2. Nf3 {[%clk 0:02:55]}  Nc6 {[%clk 0:02:58]} 3. Nc3 {[%clk 0:02:55]}  Nf6 {[%clk 0:02:58]} 4. d4 {[%clk 0:02:55]}  exd4 {[%clk 0:02:59]} 5. Nxd4 {[%clk 0:02:56]}  Bb4 {[%clk 0:03:00]} 6. Nxc6 {[%clk 0:02:56]}  bxc6 {[%clk 0:03:00]} 7. Bd3 {[%clk 0:02:56]}  O-O {[%clk 0:03:01]} 8. O-O {[%clk 0:02:57]}  d5 {[%clk 0:03:01]} 9. exd5 {[%clk 0:02:57]}  cxd5 {[%clk 0:03:02]} 10. Qf3 {[%clk 0:02:56]}  h6 {[%clk 0:03:01]} 11. h3 {[%clk 0:02:56]}  Rb8 {[%clk 0:03:01]} 12. Bf4 {[%clk 0:02:36]}  Rb6 {[%clk 0:02:48]} 13. Ne2 {[%clk 0:02:31]}  Bb7 {[%clk 0:02:44]} 14. Ng3 {[%clk 0:02:18]}  Re8 {[%clk 0:02:29]} 15. Nf5 {[%clk 0:01:55]}  Bf8 {[%clk 0:02:29]} 16. b3 {[%clk 0:01:34]}  c5 {[%clk 0:02:29]} 17. Rfe1 {[%clk 0:01:21]}  Rbe6 {[%clk 0:02:28]} 18. Bd2 {[%clk 0:01:10]}  Ne4 {[%clk 0:02:24]} 19. Bxe4 {[%clk 0:01:05]}  dxe4 {[%clk 0:02:25]} 20. Qe3 {[%clk 0:01:02]}  Qf6 {[%clk 0:02:18]} 21. Ng3 {[%clk 0:01:00]}  Qg6 {[%clk 0:02:17]} 22. Rad1 {[%clk 0:00:49]}  Bd6 {[%clk 0:02:17]} 23. Bc3 {[%clk 0:00:42]}  Ba6 {[%clk 0:02:17]} 24. Rd5 {[%clk 0:00:35]}  Bb7 {[%clk 0:02:13]} 25. Rdd1 {[%clk 0:00:29]}  f5 {[%clk 0:01:51]} 26. Ne2 {[%clk 0:00:29]}  f4 {[%clk 0:01:52]} 27. Nxf4 {[%clk 0:00:21]}  Bxf4 {[%clk 0:01:52]} 28. Qxf4 {[%clk 0:00:22]}  e3 {[%clk 0:01:53]} 29. Qg3 {[%clk 0:00:13]}  Qxg3 {[%clk 0:00:39]} 30. fxg3 {[%clk 0:00:13]}  R8e7 {[%clk 0:00:40]} 31. Rd8+ {[%clk 0:00:11]}  Kh7 {[%clk 0:00:40]} 32. Rd3 {[%clk 0:00:11]}  Ba6 {[%clk 0:00:20]} 33. Rd5 {[%clk 0:00:10]}  Rf7 {[%clk 0:00:20]} 34. Rxc5 {[%clk 0:00:08]}  e2 {[%clk 0:00:19]} 35. Kh2 {[%clk 0:00:07]}  Rf2 {[%clk 0:00:17]} 36. Rc7 {[%clk 0:00:07]}  Rg6 {[%clk 0:00:15]} 37. Re7 {[%clk 0:00:06]}  Kg8 {[%clk 0:00:10]} 38. g4 {[%clk 0:00:06]}  Rc6 {[%clk 0:00:06]} 39. Kg3 {[%clk 0:00:06]}  Rf1 {[%clk 0:00:05]} 40. Bd2 {[%clk 0:00:05]}  Rxc2 {[%clk 0:00:05]} 41. Ba5 {[%clk 0:00:05]}  Rxa2 {[%clk 0:00:05]} 42. Bb4 {[%clk 0:00:06]}  Rc2 {[%clk 0:00:03]} 43. Rxa7 {[%clk 0:00:04]}  Bd3 {[%clk 0:00:03]} 44. Ra8+ {[%clk 0:00:04]}  Kh7 {[%clk 0:00:03]} 45. Rd8 {[%clk 0:00:05]}  Be4 {[%clk 0:00:03]} 46. Rd4 {[%clk 0:00:05]}  Bc6 {[%clk 0:00:03]} 47. Rf4 {[%clk 0:00:05]}  Bb5 {[%clk 0:00:03]} 48. Rf5 {[%clk 0:00:04]}  Bd3 {[%clk 0:00:03]} 49. Rf3 {[%clk 0:00:04]}  Ba6 {[%clk 0:00:03]} 50. Re3 {[%clk 0:00:01]}  Rb2 {[%clk 0:00:03]} 51. Rf3 {[%clk 0:00:02]}  Rb1 {[%clk 0:00:03]} 52. Rexf1 {[%clk 0:00:01]}  exf1=Q {[%clk 0:00:02]} 53. Rxf1 {[%clk 0:00:02]}  Rxf1 {[%clk 0:00:02]} 54. Bc3 {[%clk 0:00:03]}  Rd1 {[%clk 0:00:03]} 55. Kh4 {[%clk 0:00:02]}  Rd3 {[%clk 0:00:04]} 56. Be5 {[%clk 0:00:02]}  g5+ {[%clk 0:00:05]} 57. Kh5 {[%clk 0:00:02]}  Bb5 {[%clk 0:00:05]} 0-1


[Site "https://www.chess.com"]

[Event "Titled Tuesday Blitz August 02 Early 2022"]
[White "Ezat, Mohamed"]
[Black "Rasulov, Vugar"]
[WhiteFideId "10600906"]
[BlackFideId "13402390"]
[WhiteElo "2386"]
[BlackElo "2523"]
[Result "0-1"]
[Round "02"]
[TimeControl "180+1"]
[Date "2022.08.02"]
[WhiteClock "0:00:05"]
[BlackClock "0:00:47"]

1. d4 {[%clk 0:02:54]}  d5 {[%clk 0:02:59]} 2. c4 {[%clk 0:02:52]}  c6 {[%clk 0:03:00]} 3. Nc3 {[%clk 0:02:52]}  Nf6 {[%clk 0:03:00]} 4. cxd5 {[%clk 0:02:52]}  cxd5 {[%clk 0:03:01]} 5. Bf4 {[%clk 0:02:52]}  Nc6 {[%clk 0:03:01]} 6. e3 {[%clk 0:02:52]}  a6 {[%clk 0:03:01]} 7. Bd3 {[%clk 0:02:52]}  Bg4 {[%clk 0:03:00]} 8. Nge2 {[%clk 0:02:52]}  e6 {[%clk 0:03:00]} 9. O-O {[%clk 0:02:50]}  Be7 {[%clk 0:03:00]} 10. h3 {[%clk 0:02:50]}  Bh5 {[%clk 0:03:01]} 11. Rc1 {[%clk 0:02:51]}  O-O {[%clk 0:03:00]} 12. a3 {[%clk 0:02:50]}  Rc8 {[%clk 0:03:01]} 13. b4 {[%clk 0:02:50]}  Nd7 {[%clk 0:02:56]} 14. Na4 {[%clk 0:02:47]}  a5 {[%clk 0:02:52]} 15. b5 {[%clk 0:02:45]}  Na7 {[%clk 0:02:45]} 16. Qb3 {[%clk 0:02:43]}  Bxe2 {[%clk 0:02:36]} 17. Bxe2 {[%clk 0:02:42]}  Re8 {[%clk 0:02:13]} 18. b6 {[%clk 0:02:41]}  Nc6 {[%clk 0:02:10]} 19. Bb5 {[%clk 0:02:41]}  Nf6 {[%clk 0:02:00]} 20. Bxc6 {[%clk 0:02:39]}  Rxc6 {[%clk 0:01:51]} 21. Rxc6 {[%clk 0:02:39]}  bxc6 {[%clk 0:01:52]} 22. b7 {[%clk 0:02:34]}  Nd7 {[%clk 0:01:52]} 23. Rc1 {[%clk 0:02:26]}  e5 {[%clk 0:01:47]} 24. Bxe5 {[%clk 0:02:11]}  Nxe5 {[%clk 0:01:42]} 25. dxe5 {[%clk 0:02:10]}  Qc7 {[%clk 0:01:43]} 26. Nc3 {[%clk 0:00:20]}  Qxe5 {[%clk 0:01:35]} 27. Nxd5 {[%clk 0:00:20]}  cxd5 {[%clk 0:01:25]} 28. Rc8 {[%clk 0:00:18]}  Bd6 {[%clk 0:01:26]} 29. f4 {[%clk 0:00:18]}  Qe6 {[%clk 0:01:07]} 30. f5 {[%clk 0:00:18]}  Qe5 {[%clk 0:01:06]} 31. Qd3 {[%clk 0:00:07]}  h5 {[%clk 0:01:02]} 32. Rxe8+ {[%clk 0:00:03]}  Qxe8 {[%clk 0:01:02]} 33. Kf2 {[%clk 0:00:04]}  Qe5 {[%clk 0:01:00]} 34. Qb5 {[%clk 0:00:03]}  Kh7 {[%clk 0:00:59]} 35. Qb1 {[%clk 0:00:02]}  Qg3+ {[%clk 0:00:58]} 36. Kf1 {[%clk 0:00:02]}  f6 {[%clk 0:00:56]} 37. Qd3 {[%clk 0:00:02]}  Qe5 {[%clk 0:00:55]} 38. Kf2 {[%clk 0:00:02]}  h4 {[%clk 0:00:55]} 39. Ke2 {[%clk 0:00:02]}  Qb2+ {[%clk 0:00:54]} 40. Kf3 {[%clk 0:00:02]}  Qxb7 {[%clk 0:00:55]} 41. Kg4 {[%clk 0:00:01]}  Qb2 {[%clk 0:00:51]} 42. Qxd5 {[%clk 0:00:01]}  Be5 {[%clk 0:00:46]} 43. Qf3 {[%clk 0:00:01]}  Qxa3 {[%clk 0:00:44]} 44. Kh5 {[%clk 0:00:02]}  Qe7 {[%clk 0:00:43]} 45. Qg4 {[%clk 0:00:02]}  Qf7+ {[%clk 0:00:43]} 46. Qg6+ {[%clk 0:00:03]}  Qxg6+ {[%clk 0:00:43]} 47. fxg6+ {[%clk 0:00:04]}  Kg8 {[%clk 0:00:44]} 48. g4 {[%clk 0:00:04]}  a4 {[%clk 0:00:45]} 49. g5 {[%clk 0:00:04]}  f5 {[%clk 0:00:44]} 50. e4 {[%clk 0:00:05]}  fxe4 {[%clk 0:00:44]} 51. Kxh4 {[%clk 0:00:03]}  a3 {[%clk 0:00:45]} 52. Kh5 {[%clk 0:00:03]}  a2 {[%clk 0:00:45]} 53. h4 {[%clk 0:00:04]}  a1=Q {[%clk 0:00:46]} 54. Kg4 {[%clk 0:00:04]}  Qd1+ {[%clk 0:00:47]} 55. Kf5 {[%clk 0:00:05]}  e3 {[%clk 0:00:47]} 0-1


[Site "https://www.chess.com"]